[Event "21th IPCA World Individual Chp."]
[Site "followchess.com"]
[Date "2022.05.13"]
[Round "5"]
[White "Yarmonov, Igor"]
[Black "Babanov, Aleksandr"]
[Result "1-0"]
[WhiteElo "2394"]
[BlackElo "1929"]
[ECO "D13"]
[WhiteFed "UKR"]
[BlackFed "RUS"]
[FCGameId "-1253864184"]
[WhiteFideId "14114496"]
[BlackFideId "24117412"]
[TimeControl "5400+30"]

1. d4 {[%clk 1:30:56]} d5 {[%clk 1:30:34]} 2. c4 {[%clk 1:31:21]} c6 
{[%clk 1:30:42]} 3. Nf3 {[%clk 1:31:46]} Nf6 {[%clk 1:30:51]} 4. cxd5 
{[%clk 1:31:46]} cxd5 {[%clk 1:31:01]} 5. Nc3 {[%clk 1:32:12]} e6 
{[%clk 1:28:19]} 6. Bf4 {[%clk 1:32:25]} Nc6 {[%clk 1:24:12]} 7. e3 
{[%clk 1:32:17]} Bb4 {[%clk 1:16:12]} 8. a3 {[%clk 1:32:28]} Bxc3+ 
{[%clk 1:16:30]} 9. bxc3 {[%clk 1:32:37]} Qa5 {[%clk 1:15:30]} 10. Qb3 
{[%clk 1:32:32]} Ne4 {[%clk 1:15:04]} 11. Rc1 {[%clk 1:32:51]} O-O 
{[%clk 1:13:07]} 12. Bd3 {[%clk 1:33:14]} Nf6 {[%clk 1:07:31]} 13. O-O 
{[%clk 1:33:30]} Nh5 {[%clk 1:04:30]} 14. Be5 {[%clk 1:22:12]} Nxe5 
{[%clk 0:57:35]} 15. dxe5 {[%clk 1:22:38]} g6 {[%clk 0:57:33]} 16. c4 
{[%clk 1:22:46]} Rb8 {[%clk 0:49:17]} 17. cxd5 {[%clk 1:22:27]} exd5 
{[%clk 0:48:38]} 18. Nd4 {[%clk 1:22:17]} Ng7 {[%clk 0:44:30]} 19. Rc3 
{[%clk 1:17:20]} Bd7 {[%clk 0:34:57]} 20. Rfc1 {[%clk 1:16:54]} Rfc8 
{[%clk 0:30:18]} 21. Bb5 {[%clk 0:43:15]} Rxc3 {[%clk 0:24:55]} 22. Rxc3 
{[%clk 0:39:55]} Be6 {[%clk 0:18:03]} 23. h3 {[%clk 0:39:07]} h5 
{[%clk 0:17:39]} 24. Be2 {[%clk 0:37:18]} Bd7 {[%clk 0:16:19]} 25. Bf3 
{[%clk 0:37:00]} Rd8 {[%clk 0:13:57]} 26. Bxd5 {[%clk 0:32:52]} Be8 
{[%clk 0:11:25]} 27. e4 {[%clk 0:29:13]} h4 {[%clk 0:09:07]} 28. Qb4 
{[%clk 0:25:55]} Rxd5 {[%clk 0:06:25]} 29. exd5 {[%clk 0:25:38]} Qxd5 
{[%clk 0:06:50]} 30. Rc5 {[%clk 0:23:25]} Qe4 {[%clk 0:06:13]} 31. Nf3 
{[%clk 0:23:45]} Qxb4 {[%clk 0:03:51]} 32. axb4 {[%clk 0:24:11]} b6 
{[%clk 0:02:05]} 33. Rc8 {[%clk 0:24:18]} Kf8 {[%clk 0:01:36]} 34. Nxh4 
{[%clk 0:23:48]} a5 {[%clk 0:01:47]} 35. Rb8 {[%clk 0:23:43]} axb4 
{[%clk 0:01:09]} 36. Rxb6 {[%clk 0:24:06]} b3 {[%clk 0:01:04]} 37. Rxb3 
{[%clk 0:24:29]} Ne6 {[%clk 0:01:23]} 38. Nf3 {[%clk 0:24:28]} Bc6 
{[%clk 0:01:24]} 39. h4 {[%clk 0:24:36]} Bd5 {[%clk 0:01:29]} 40. Rb8+ 
{[%clk 0:24:05]} Ke7 {[%clk 0:01:19]} 41. Ng5 {[%clk 0:24:31]} Nf4 
{[%clk 0:01:03]} 42. g3 {[%clk 0:24:37]} Nd3 {[%clk 0:00:54]} 43. f4 
{[%clk 0:24:54]} Kd7 {[%clk 0:00:44]} 44. Rb1 {[%clk 0:24:37]} Ke7 
{[%clk 0:00:40]} 45. Rd1 {[%clk 0:24:35]} Bc4 {[%clk 0:00:43]} 46. Ra1 
{[%clk 0:24:39]} Bd5 {[%clk 0:00:47]} 47. Ra7+ {[%clk 0:24:31]} Ke8 
{[%clk 0:01:04]} 48. Rc7 {[%clk 0:23:37]} Ba2 {[%clk 0:00:36]} 49. Kg2 
{[%clk 0:22:46]} Bd5+ {[%clk 0:00:55]} 50. Kf1 {[%clk 0:22:45]} Nb4 
{[%clk 0:00:39]} 51. Ke2 {[%clk 0:22:37]} Na6 {[%clk 0:00:42]} 52. Ra7 
{[%clk 0:22:39]} Nb4 {[%clk 0:00:38]} 53. Ke3 {[%clk 0:22:41]} Nc6 
{[%clk 0:00:46]} 54. Ra8+ {[%clk 0:21:28]} Ke7 {[%clk 0:01:00]} 55. Ra6 
{[%clk 0:20:29]} Nb8 {[%clk 0:00:36]} 56. Ra7+ {[%clk 0:20:51]} Ke8 
{[%clk 0:00:36]} 57. g4 {[%clk 0:21:11]} Nc6 {[%clk 0:00:48]} 58. Ra6 
{[%clk 0:20:38]} Nb4 {[%clk 0:00:41]} 59. Ra5 {[%clk 0:20:39]} Bc4 
{[%clk 0:00:33]} 60. Ra4 {[%clk 0:20:33]} Nc2+ {[%clk 0:00:34]} 61. Kd2 
{[%clk 0:20:49]} Bb3 {[%clk 0:00:38]} 62. Ra8+ {[%clk 0:20:48]} Ke7 
{[%clk 0:00:38]} 63. Kc3 {[%clk 0:21:02]} Bd5 {[%clk 0:00:32]} 64. Ra7+ 
{[%clk 0:21:25]} 1-0

[Event "21th IPCA World Individual Chp."]
[Site "followchess.com"]
[Date "2022.05.13"]
[Round "5"]
[White "Zilberman, Yaacov"]
[Black "Mikheev, Stanislav"]
[Result "1/2-1/2"]
[WhiteElo "2315"]
[BlackElo "2333"]
[ECO "D94"]
[WhiteFed "ISR"]
[BlackFed "SRB"]
[FCGameId "-138529200"]
[WhiteFideId "2801612"]
[BlackFideId "4135920"]
[TimeControl "5400+30"]

1. d4 {[%clk 1:30:47]} Nf6 {[%clk 1:30:47]} 2. Nf3 {[%clk 1:30:47]} g6 
{[%clk 1:30:46]} 3. c4 {[%clk 1:30:49]} Bg7 {[%clk 1:30:55]} 4. Nc3 
{[%clk 1:30:43]} d5 {[%clk 1:30:39]} 5. e3 {[%clk 1:30:25]} O-O {[%clk 1:30:50]} 
6. Bd2 {[%clk 1:30:28]} b6 {[%clk 1:25:02]} 7. cxd5 {[%clk 1:27:03]} Nxd5 
{[%clk 1:25:21]} 8. Bc4 {[%clk 1:27:16]} Bb7 {[%clk 1:23:02]} 9. O-O 
{[%clk 1:26:14]} e6 {[%clk 1:20:45]} 10. Rc1 {[%clk 1:24:54]} Nd7 
{[%clk 1:18:14]} 11. Qe2 {[%clk 1:21:08]} c5 {[%clk 1:12:52]} 12. Rfd1 
{[%clk 1:15:19]} cxd4 {[%clk 1:07:45]} 13. exd4 {[%clk 1:14:46]} N7f6 
{[%clk 1:03:47]} 14. Ne5 {[%clk 1:09:21]} Nxc3 {[%clk 1:02:41]} 15. bxc3 
{[%clk 1:05:46]} Nd5 {[%clk 1:00:02]} 16. Bd3 {[%clk 1:02:43]} Qd6 
{[%clk 0:56:59]} 17. c4 {[%clk 0:57:42]} Ne7 {[%clk 0:53:45]} 18. Bc3 
{[%clk 0:54:36]} Rac8 {[%clk 0:50:34]} 19. Qb2 {[%clk 0:48:27]} Rfd8 
{[%clk 0:45:07]} 20. Be2 {[%clk 0:44:53]} Nc6 {[%clk 0:38:51]} 21. c5 
{[%clk 0:32:17]} Qc7 {[%clk 0:37:06]} 22. Nc4 {[%clk 0:30:24]} Ba6 
{[%clk 0:28:00]} 23. Nd6 {[%clk 0:27:41]} Bxe2 {[%clk 0:28:18]} 24. Qxe2 
{[%clk 0:27:54]} Rxd6 {[%clk 0:28:03]} 25. cxd6 {[%clk 0:28:07]} Qxd6 
{[%clk 0:28:26]} 26. d5 {[%clk 0:22:07]} exd5 {[%clk 0:26:24]} 27. Bxg7 
{[%clk 0:22:24]} Kxg7 {[%clk 0:26:51]} 28. h3 {[%clk 0:19:05]} Rd8 
{[%clk 0:23:40]} 29. Qc2 {[%clk 0:17:00]} Ne7 {[%clk 0:21:08]} 30. Qc7 
{[%clk 0:14:50]} Rd7 {[%clk 0:18:30]} 31. Qxd6 {[%clk 0:13:51]} Rxd6 
{[%clk 0:18:59]} 32. Rc7 {[%clk 0:13:46]} Nc6 {[%clk 0:19:03]} 33. Rc1 
{[%clk 0:13:37]} Nd4 {[%clk 0:19:11]} 34. Kf1 {[%clk 0:13:26]} Nb5 
{[%clk 0:11:51]} 35. R7c6 {[%clk 0:13:32]} Rf6 {[%clk 0:08:52]} 36. a4 
{[%clk 0:07:46]} Nd4 {[%clk 0:06:51]} 37. Rxf6 {[%clk 0:06:44]} Kxf6 
{[%clk 0:07:20]} 38. Rc7 {[%clk 0:06:44]} Nb3 {[%clk 0:03:12]} 39. Rxa7 
{[%clk 0:06:36]} Nc5 {[%clk 0:02:54]} 40. Ke2 {[%clk 0:05:17]} Ke6 
{[%clk 0:03:16]} 41. g4 {[%clk 0:04:43]} h6 {[%clk 0:02:36]} 42. f4 
{[%clk 0:04:10]} d4 {[%clk 0:02:48]} 43. Kd2 {[%clk 0:03:14]} h5 
{[%clk 0:01:45]} 44. Ke2 {[%clk 0:02:00]} hxg4 {[%clk 0:02:09]} 45. hxg4 
{[%clk 0:02:24]} Kf6 {[%clk 0:01:55]} 46. Ra8 {[%clk 0:02:15]} Ke6 
{[%clk 0:01:36]} 47. Kf3 {[%clk 0:02:19]} Kd5 {[%clk 0:01:48]} 48. Ra7 
{[%clk 0:02:18]} Ke6 {[%clk 0:02:08]} 49. Ke2 {[%clk 0:01:44]} Kf6 
{[%clk 0:02:33]} 50. Kf3 {[%clk 0:01:23]} Ke6 {[%clk 0:02:57]} 51. Ke2 
{[%clk 0:01:21]} Kf6 {[%clk 0:03:18]} 1/2-1/2

[Event "21th IPCA World Individual Chp."]
[Site "followchess.com"]
[Date "2022.05.13"]
[Round "5"]
[White "Campos, Eugenio"]
[Black "Gerasimova, Svetlana"]
[Result "1-0"]
[WhiteElo "2247"]
[BlackElo "1906"]
[ECO "B31"]
[WhiteFed "ANG"]
[BlackFed "RUS"]
[FCGameId "679274133"]
[WhiteFideId "10100156"]
[BlackFideId "4145968"]
[TimeControl "5400+30"]

1. e4 {[%clk 1:30:57]} c5 {[%clk 1:30:51]} 2. Nf3 {[%clk 1:31:17]} Nc6 
{[%clk 1:31:14]} 3. Bb5 {[%clk 1:31:31]} g6 {[%clk 1:31:32]} 4. O-O 
{[%clk 1:30:40]} Bg7 {[%clk 1:31:51]} 5. c3 {[%clk 1:30:59]} e5 {[%clk 1:31:07]} 
6. d3 {[%clk 1:30:32]} Nge7 {[%clk 1:30:24]} 7. Be3 {[%clk 1:30:40]} b6 
{[%clk 1:29:23]} 8. d4 {[%clk 1:30:35]} cxd4 {[%clk 1:28:54]} 9. cxd4 
{[%clk 1:30:57]} exd4 {[%clk 1:28:23]} 10. Nxd4 {[%clk 1:31:18]} O-O 
{[%clk 1:28:25]} 11. Nc3 {[%clk 1:31:38]} Bb7 {[%clk 1:18:12]} 12. Rc1 
{[%clk 1:31:45]} Rc8 {[%clk 1:17:28]} 13. Qd2 {[%clk 1:30:21]} Ne5 
{[%clk 1:15:24]} 14. Qe2 {[%clk 1:27:34]} f5 {[%clk 1:11:49]} 15. exf5 
{[%clk 1:25:32]} Nxf5 {[%clk 1:09:28]} 16. Nxf5 {[%clk 1:22:53]} Rxf5 
{[%clk 1:09:02]} 17. f4 {[%clk 1:22:23]} Nc6 {[%clk 1:07:28]} 18. Rfd1 
{[%clk 1:21:57]} Qe7 {[%clk 0:47:45]} 19. Nd5 {[%clk 1:21:11]} Qe4 
{[%clk 0:45:36]} 20. Bd3 {[%clk 1:19:39]} Nd4 {[%clk 0:40:01]} 21. Rxc8+ 
{[%clk 1:19:11]} Bxc8 {[%clk 0:40:27]} 22. Bxe4 {[%clk 1:19:27]} Nxe2+ 
{[%clk 0:40:43]} 23. Kf2 {[%clk 1:19:49]} Ba6 {[%clk 0:38:39]} 24. Ne7+ 
{[%clk 1:19:45]} Kf7 {[%clk 0:38:49]} 25. Nxf5 {[%clk 1:20:06]} gxf5 
{[%clk 0:39:12]} 26. Bxf5 {[%clk 1:20:16]} Bxb2 {[%clk 0:39:20]} 27. Rd2 
{[%clk 1:19:07]} Nc3 {[%clk 0:38:16]} 28. Rxd7+ {[%clk 1:19:26]} 1-0

[Event "21th IPCA World Individual Chp."]
[Site "followchess.com"]
[Date "2022.05.13"]
[Round "5"]
[White "Lipilin, Ilia"]
[Black "Vardi, Moshe"]
[Result "1-0"]
[WhiteElo "2198"]
[BlackElo "1631"]
[ECO "A65"]
[WhiteFed "RUS"]
[BlackFed "ISR"]
[FCGameId "2010154792"]
[WhiteFideId "54113245"]
[BlackFideId "2801710"]
[TimeControl "5400+30"]

1. d4 {[%clk 1:30:57]} c5 {[%clk 1:21:09]} 2. d5 {[%clk 1:31:16]} Nf6 
{[%clk 1:21:01]} 3. c4 {[%clk 1:31:36]} d6 {[%clk 1:20:57]} 4. Nc3 
{[%clk 1:31:55]} e6 {[%clk 1:20:16]} 5. e4 {[%clk 1:32:14]} exd5 
{[%clk 1:20:20]} 6. cxd5 {[%clk 1:32:38]} Be7 {[%clk 1:20:31]} 7. Nf3 
{[%clk 1:32:45]} Bg4 {[%clk 1:20:15]} 8. Qa4+ {[%clk 1:32:21]} Nbd7 
{[%clk 1:19:49]} 9. Nd2 {[%clk 1:31:04]} a6 {[%clk 1:19:52]} 10. f3 
{[%clk 1:31:24]} b5 {[%clk 1:19:37]} 11. Qc2 {[%clk 1:28:40]} Bh5 
{[%clk 1:19:01]} 12. a4 {[%clk 1:28:57]} b4 {[%clk 1:18:47]} 13. Nd1 
{[%clk 1:29:15]} h6 {[%clk 1:18:21]} 14. Nc4 {[%clk 1:28:13]} O-O 
{[%clk 1:16:55]} 15. a5 {[%clk 1:27:40]} Re8 {[%clk 1:16:24]} 16. Be2 
{[%clk 1:27:26]} Bg6 {[%clk 1:07:03]} 17. Nde3 {[%clk 1:13:15]} Nxe4 
{[%clk 1:04:02]} 18. fxe4 {[%clk 1:13:37]} Bh4+ {[%clk 1:03:29]} 19. Kd1 
{[%clk 1:13:49]} Rxe4 {[%clk 1:03:08]} 20. Qb3 {[%clk 1:13:15]} Qe7 
{[%clk 1:00:56]} 21. Bd2 {[%clk 1:10:22]} Bg5 {[%clk 1:00:35]} 22. Re1 
{[%clk 1:05:27]} Re8 {[%clk 0:58:56]} 23. Bd3 {[%clk 1:01:07]} Bh5+ 
{[%clk 0:55:59]} 24. Kc2 {[%clk 1:01:00]} Bxe3 {[%clk 0:54:38]} 25. Bxe3 
{[%clk 0:59:34]} Rg4 {[%clk 0:51:11]} 26. g3 {[%clk 0:58:39]} Qf6 
{[%clk 0:49:34]} 27. Rf1 {[%clk 0:55:25]} Qe7 {[%clk 0:49:27]} 28. Rae1 
{[%clk 0:55:13]} Qf8 {[%clk 0:47:19]} 29. Bf4 {[%clk 0:53:42]} Ne5 
{[%clk 0:46:41]} 30. Bf5 {[%clk 0:50:03]} Bg6 {[%clk 0:41:17]} 31. Bxe5 
{[%clk 0:50:09]} Bxf5+ {[%clk 0:36:24]} 32. Rxf5 {[%clk 0:50:23]} dxe5 
{[%clk 0:35:02]} 33. Rexe5 {[%clk 0:49:10]} f6 {[%clk 0:34:25]} 34. d6 
{[%clk 0:47:15]} Kh7 {[%clk 0:33:34]} 35. Qd3 {[%clk 0:35:14]} Rd4 
{[%clk 0:31:19]} 36. Rxf6+ {[%clk 0:34:53]} Rxd3 {[%clk 0:30:42]} 37. Rxf8 
{[%clk 0:35:11]} Rxf8 {[%clk 0:29:19]} 38. Kxd3 {[%clk 0:35:27]} Rd8 
{[%clk 0:27:43]} 39. Ke4 {[%clk 0:35:43]} b3 {[%clk 0:27:34]} 40. Kd5 
{[%clk 0:36:03]} Kg6 {[%clk 0:28:01]} 41. Nb6 {[%clk 0:36:16]} Kf6 
{[%clk 0:27:50]} 42. d7 {[%clk 0:36:37]} c4 {[%clk 0:28:17]} 43. Re8 
{[%clk 0:36:39]} c3 {[%clk 0:28:32]} 44. Rxd8 {[%clk 0:36:58]} c2 
{[%clk 0:28:46]} 45. Rc8 {[%clk 0:37:24]} 1-0

[Event "21th IPCA World Individual Chp."]
[Site "followchess.com"]
[Date "2022.05.13"]
[Round "5"]
[White "Shapiro, Benny"]
[Black "Valenta, Vit Vaclav"]
[Result "0-1"]
[WhiteElo "1884"]
[BlackElo "2014"]
[ECO "E71"]
[WhiteFed "ISR"]
[BlackFed "CZE"]
[FCGameId "-1682625034"]
[WhiteFideId "2801582"]
[BlackFideId "307440"]
[TimeControl "5400+30"]

1. d4 {[%clk 1:28:50]} Nf6 {[%clk 1:30:51]} 2. c4 {[%clk 1:29:06]} d6 
{[%clk 1:31:10]} 3. Nc3 {[%clk 1:29:14]} g6 {[%clk 1:31:16]} 4. e4 
{[%clk 1:28:49]} Bg7 {[%clk 1:31:29]} 5. h3 {[%clk 1:28:53]} Nbd7 
{[%clk 1:30:58]} 6. Nf3 {[%clk 1:28:02]} e5 {[%clk 1:30:59]} 7. d5 
{[%clk 1:27:47]} O-O {[%clk 1:30:33]} 8. Bd3 {[%clk 1:27:41]} a5 
{[%clk 1:30:03]} 9. O-O {[%clk 1:26:58]} Nh5 {[%clk 1:30:22]} 10. a3 
{[%clk 1:25:39]} Nf4 {[%clk 1:30:30]} 11. Bc2 {[%clk 1:25:24]} Nb6 
{[%clk 1:29:20]} 12. c5 {[%clk 1:23:56]} dxc5 {[%clk 1:28:48]} 13. Be3 
{[%clk 1:24:00]} Nd7 {[%clk 1:29:03]} 14. Nb5 {[%clk 1:19:40]} b6 
{[%clk 1:22:30]} 15. d6 {[%clk 1:18:54]} Ba6 {[%clk 1:18:47]} 16. Nxc7 
{[%clk 1:15:31]} Bxf1 {[%clk 1:18:51]} 17. Qxf1 {[%clk 1:15:38]} Rc8 
{[%clk 1:13:42]} 18. g3 {[%clk 1:14:56]} Ne6 {[%clk 1:06:39]} 19. Nxe6 
{[%clk 1:11:41]} fxe6 {[%clk 1:07:06]} 20. Ng5 {[%clk 1:11:46]} Rf6 
{[%clk 0:59:34]} 21. h4 {[%clk 1:09:13]} h6 {[%clk 0:57:40]} 22. Nh3 
{[%clk 1:08:50]} Nb8 {[%clk 0:35:52]} 23. Rd1 {[%clk 0:57:41]} Rc6 
{[%clk 0:34:00]} 24. d7 {[%clk 0:56:16]} Rc7 {[%clk 0:27:43]} 25. Ba4 
{[%clk 0:55:35]} Rf7 {[%clk 0:26:07]} 26. Qc4 {[%clk 0:53:27]} Re7 
{[%clk 0:24:31]} 27. Rd6 {[%clk 0:49:24]} Nxd7 {[%clk 0:22:07]} 28. Rxe6 
{[%clk 0:48:51]} Rxe6 {[%clk 0:22:02]} 29. Qxe6+ {[%clk 0:49:01]} Kh7 
{[%clk 0:22:31]} 30. Bb3 {[%clk 0:44:51]} Nf6 {[%clk 0:17:26]} 31. Qxb6 
{[%clk 0:42:47]} Qc8 {[%clk 0:13:31]} 32. Bc4 {[%clk 0:36:17]} Qb7 
{[%clk 0:07:37]} 33. Qxa5 {[%clk 0:33:06]} Rd7 {[%clk 0:07:16]} 34. f3 
{[%clk 0:27:16]} Rd1+ {[%clk 0:06:48]} 35. Kf2 {[%clk 0:22:33]} Qxb2+ 
{[%clk 0:06:18]} 36. Be2 {[%clk 0:22:59]} Rh1 {[%clk 0:06:25]} 37. Ng1 
{[%clk 0:20:39]} Rxg1 {[%clk 0:06:40]} 38. Kxg1 {[%clk 0:20:17]} Qxe2 
{[%clk 0:07:08]} 39. Bf2 {[%clk 0:19:01]} Qxf3 {[%clk 0:07:28]} 40. Qxc5 
{[%clk 0:18:29]} Nxe4 {[%clk 0:07:44]} 41. Qe3 {[%clk 0:18:25]} Qd1+ 
{[%clk 0:06:22]} 42. Kg2 {[%clk 0:18:21]} Qc2 {[%clk 0:05:58]} 43. Qf3 
{[%clk 0:18:03]} Nxf2 {[%clk 0:04:50]} 44. Qxf2 {[%clk 0:18:28]} Qxf2+ 
{[%clk 0:05:10]} 45. Kxf2 Bf8 46. a4 {[%clk 0:18:47]} Kg7 {[%clk 0:05:17]} 47. 
Kf3 {[%clk 0:19:04]} Kf6 {[%clk 0:05:33]} 48. Ke4 {[%clk 0:19:22]} Ke6 
{[%clk 0:05:54]} 49. g4 {[%clk 0:19:44]} 0-1

[Event "21th IPCA World Individual Chp."]
[Site "followchess.com"]
[Date "2022.05.13"]
[Round "5"]
[White "Alperovich, Asher"]
[Black "Cosic, Radoslav"]
[Result "1-0"]
[WhiteElo "1865"]
[BlackElo "2003"]
[ECO "E20"]
[WhiteFed "ISR"]
[BlackFed "CRO"]
[FCGameId "-1668338467"]
[WhiteFideId "2803275"]
[BlackFideId "14504367"]
[TimeControl "5400+30"]

1. d4 {[%clk 1:29:19]} Nf6 {[%clk 1:30:35]} 2. c4 {[%clk 1:29:30]} e6 
{[%clk 1:30:57]} 3. Nc3 {[%clk 1:29:49]} Bb4 {[%clk 1:31:14]} 4. f3 
{[%clk 1:30:00]} O-O {[%clk 1:25:10]} 5. a3 {[%clk 1:29:48]} Be7 
{[%clk 1:24:58]} 6. e4 {[%clk 1:28:45]} d6 {[%clk 1:25:26]} 7. Be3 
{[%clk 1:23:14]} Nc6 {[%clk 1:24:42]} 8. Nge2 {[%clk 1:20:02]} a6 
{[%clk 1:21:29]} 9. Nc1 {[%clk 1:16:37]} e5 {[%clk 1:19:50]} 10. d5 
{[%clk 1:15:04]} Nb8 {[%clk 1:20:09]} 11. Be2 {[%clk 1:13:49]} Nh5 
{[%clk 1:15:50]} 12. Qd2 {[%clk 1:07:10]} b6 {[%clk 1:08:57]} 13. b4 
{[%clk 1:04:49]} Nf4 {[%clk 1:09:10]} 14. O-O {[%clk 1:03:41]} Nd7 
{[%clk 1:05:19]} 15. Nd3 {[%clk 1:02:10]} g5 {[%clk 1:05:08]} 16. g3 
{[%clk 1:00:41]} Nxe2+ {[%clk 1:05:13]} 17. Qxe2 {[%clk 0:59:37]} Kh8 
{[%clk 1:05:22]} 18. Kg2 {[%clk 0:55:18]} Rg8 {[%clk 1:05:48]} 19. Rh1 
{[%clk 0:53:02]} Nf8 {[%clk 1:03:26]} 20. Kf2 {[%clk 0:50:01]} Ng6 
{[%clk 1:01:08]} 21. Ke1 {[%clk 0:50:02]} Bd7 {[%clk 1:00:37]} 22. Kd2 
{[%clk 0:49:52]} Bf6 {[%clk 0:59:06]} 23. c5 {[%clk 0:45:29]} dxc5 
{[%clk 0:57:18]} 24. bxc5 bxc5 25. Nxc5 {[%clk 0:42:20]} Bc8 {[%clk 0:53:30]} 
26. Rhd1 {[%clk 0:42:03]} Bg7 {[%clk 0:53:20]} 27. Ke1 Qf6 {[%clk 0:53:02]} 28. 
Rac1 {[%clk 0:40:53]} Rb8 29. Rb1 Rxb1 {[%clk 0:52:18]} 30. Rxb1 h6 31. Nd3 Nf4 
32. gxf4 exf4 33. e5 {[%clk 0:33:26]} Qg6 {[%clk 0:48:09]} 34. Bd4 
{[%clk 0:33:24]} Bf5 35. Rd1 Rb8 36. Nf2 {[%clk 0:30:09]} h5 37. h3 Rb3 
{[%clk 0:40:11]} 38. Qc4 Rb2 39. Nce4 Rxf2 40. Nxf2 g4 41. hxg4 {[%clk 0:15:05]} 
hxg4 42. fxg4 Bd7 43. Qxc7 Bb5 44. Qc8+ {[%clk 0:11:02]} Kh7 {[%clk 0:35:12]} 
45. Qf5 1-0

[Event "21th IPCA World Individual Chp."]
[Site "followchess.com"]
[Date "2022.05.13"]
[Round "5"]
[White "Oliel, Yehonatan"]
[Black "Srimskov, Elishar"]
[Result "0-1"]
[WhiteElo "1535"]
[BlackElo "1992"]
[ECO "E90"]
[WhiteFed "ISR"]
[BlackFed "ISR"]
[FCGameId "1340410996"]
[WhiteFideId "2834928"]
[BlackFideId "2807254"]
[TimeControl "5400+30"]

1. d4 {[%clk 1:30:54]} Nf6 2. Nf3 {[%clk 1:30:42]} g6 {[%clk 1:30:40]} 3. c4 
{[%clk 1:29:46]} Bg7 {[%clk 1:30:49]} 4. Nc3 {[%clk 1:28:56]} O-O 
{[%clk 1:30:46]} 5. e4 {[%clk 1:28:10]} d6 {[%clk 1:30:40]} 6. Be3 
{[%clk 1:21:48]} Ng4 {[%clk 1:28:34]} 7. Bf4 {[%clk 1:20:59]} Nd7 
{[%clk 1:25:59]} 8. h3 {[%clk 1:18:26]} Ngf6 {[%clk 1:25:24]} 9. Qd2 
{[%clk 1:17:32]} Ne8 {[%clk 1:19:46]} 10. O-O-O {[%clk 1:14:19]} c6 
{[%clk 1:17:15]} 11. Be2 {[%clk 1:04:59]} Qa5 {[%clk 1:15:23]} 12. Kb1 
{[%clk 0:59:31]} e5 {[%clk 1:08:43]} 13. Bh6 {[%clk 0:57:37]} Nef6 
{[%clk 1:01:53]} 14. g4 {[%clk 0:53:37]} Re8 {[%clk 0:58:40]} 15. Bxg7 
{[%clk 0:48:34]} Kxg7 {[%clk 0:58:59]} 16. g5 {[%clk 0:43:06]} Nh5 
{[%clk 0:58:35]} 17. d5 {[%clk 0:41:30]} c5 {[%clk 0:57:22]} 18. Ne1 
{[%clk 0:40:00]} Nf4 19. Nd3 {[%clk 0:39:38]} Nxe2 {[%clk 0:54:13]} 20. Qxe2 
{[%clk 0:39:08]} a6 {[%clk 0:53:36]} 21. f4 {[%clk 0:35:55]} b5 {[%clk 0:50:33]} 
22. Nc1 {[%clk 0:32:36]} b4 {[%clk 0:48:46]} 23. Nb3 {[%clk 0:32:03]} Qd8 
{[%clk 0:49:00]} 24. Na4 {[%clk 0:31:56]} exf4 {[%clk 0:48:39]} 25. h4 
{[%clk 0:31:07]} Ne5 {[%clk 0:45:24]} 26. Qc2 {[%clk 0:28:29]} Qc7 
{[%clk 0:44:07]} 27. Rdf1 {[%clk 0:26:47]} Bd7 {[%clk 0:43:27]} 28. Nd2 
{[%clk 0:26:16]} f3 {[%clk 0:40:53]} 29. b3 {[%clk 0:24:42]} Bxa4 
{[%clk 0:34:01]} 30. bxa4 {[%clk 0:24:54]} Qe7 {[%clk 0:34:02]} 31. Rf2 
{[%clk 0:20:31]} Ra7 {[%clk 0:33:46]} 32. Re1 {[%clk 0:20:39]} Rb7 
{[%clk 0:32:43]} 33. Nxf3 {[%clk 0:20:35]} Nxf3 {[%clk 0:32:27]} 34. Rxf3 
{[%clk 0:20:49]} Qe5 {[%clk 0:29:02]} 35. Rf6 {[%clk 0:18:34]} h6 
{[%clk 0:24:01]} 36. Qb2 {[%clk 0:16:52]} hxg5 {[%clk 0:23:25]} 37. hxg5 
{[%clk 0:16:38]} Rd7 {[%clk 0:21:15]} 38. Ka1 {[%clk 0:14:11]} Qxb2+ 
{[%clk 0:21:14]} 39. Kxb2 {[%clk 0:14:35]} Re5 {[%clk 0:21:34]} 40. Rf4 
{[%clk 0:12:11]} Rxg5 {[%clk 0:21:50]} 41. Rh4 {[%clk 0:12:11]} Rg2+ 
{[%clk 0:20:54]} 42. Kb3 {[%clk 0:11:01]} Rg3+ {[%clk 0:21:13]} 43. Kb2 
{[%clk 0:11:27]} Re7 {[%clk 0:20:35]} 44. Reh1 {[%clk 0:10:29]} Rg2+ 
{[%clk 0:20:32]} 45. Kb3 {[%clk 0:10:03]} Rf2 {[%clk 0:20:49]} 46. Rh7+ 
{[%clk 0:09:31]} Kf6 {[%clk 0:21:11]} 47. Re1 {[%clk 0:09:35]} Rf3+ 
{[%clk 0:20:23]} 48. Kb2 {[%clk 0:09:51]} Ke5 {[%clk 0:20:37]} 49. Rh8 
{[%clk 0:09:55]} Ra3 {[%clk 0:19:14]} 50. Rf1 {[%clk 0:07:43]} Rxa4 
{[%clk 0:19:04]} 51. Rh7 {[%clk 0:07:51]} Kd4 {[%clk 0:17:57]} 52. Rhxf7 
{[%clk 0:06:47]} Rxe4 {[%clk 0:17:20]} 53. R7f4 {[%clk 0:05:38]} g5 
{[%clk 0:16:35]} 54. Rxe4+ {[%clk 0:04:30]} Kxe4 {[%clk 0:16:51]} 55. Rg1 
{[%clk 0:03:42]} Kf5 {[%clk 0:15:23]} 56. Rf1+ {[%clk 0:03:48]} Kg6 
{[%clk 0:15:43]} 57. Re1 {[%clk 0:04:07]} Ra3 {[%clk 0:14:42]} 58. Re6+ 
{[%clk 0:04:23]} Kf5 {[%clk 0:13:38]} 59. Rxd6 {[%clk 0:04:39]} Rc3 
{[%clk 0:13:31]} 60. Rxa6 {[%clk 0:04:09]} Rxc4 {[%clk 0:13:53]} 61. Rc6 
{[%clk 0:02:06]} g4 {[%clk 0:13:23]} 62. Kb3 {[%clk 0:01:47]} Rc3+ 
{[%clk 0:13:11]} 63. Ka4 {[%clk 0:01:30]} g3 {[%clk 0:13:17]} 64. Rc8 
{[%clk 0:00:49]} Ke5 {[%clk 0:12:36]} 0-1